[Event "Titled Tuesday Blitz June 13 Late 2023"]
[White "Tarlabasi, Emirhan"]
[Black "Smiechu"]
[WhiteFideId "6350275"]
[WhiteElo "2200"]
[BlackElo "2406"]
[Result "0-1"]
[Round "4"]
[TimeControl "180+2"]
[Date "2023.06.13"]
[WhiteClock "0:00:02"]
[BlackClock "0:00:16"]
[Board "121"]

1. Nf3 {[%clk 0:03:00]}  Nf6 {[%clk 0:02:59]} 2. c4 {[%clk 0:03:01]}  c5 {[%clk 0:02:59]} 3. b3 {[%clk 0:03:02]}  g6 {[%clk 0:02:59]} 4. Bb2 {[%clk 0:03:02]}  Bg7 {[%clk 0:03:00]} 5. g3 {[%clk 0:03:03]}  O-O {[%clk 0:03:01]} 6. Bg2 {[%clk 0:03:04]}  Nc6 {[%clk 0:03:01]} 7. O-O {[%clk 0:03:04]}  d6 {[%clk 0:03:02]} 8. d4 {[%clk 0:03:04]}  cxd4 {[%clk 0:03:01]} 9. Nxd4 {[%clk 0:03:05]}  Bd7 {[%clk 0:03:02]} 10. Nc3 {[%clk 0:03:05]}  Nxd4 {[%clk 0:03:02]} 11. Qxd4 {[%clk 0:03:06]}  Bc6 {[%clk 0:03:01]} 12. Nd5 {[%clk 0:03:06]}  Bxd5 {[%clk 0:02:59]} 13. Bxd5 {[%clk 0:03:07]}  Qd7 {[%clk 0:02:56]} 14. Rfd1 {[%clk 0:03:00]}  Nh5 {[%clk 0:02:55]} 15. Qd2 {[%clk 0:03:00]}  Bxb2 {[%clk 0:02:55]} 16. Qxb2 {[%clk 0:03:01]}  Nf6 {[%clk 0:02:55]} 17. Bf3 {[%clk 0:03:01]}  Rac8 {[%clk 0:02:52]} 18. h4 {[%clk 0:02:59]}  h5 {[%clk 0:02:51]} 19. Rac1 {[%clk 0:02:56]}  b6 {[%clk 0:02:50]} 20. e4 {[%clk 0:02:55]}  Qe6 {[%clk 0:02:45]} 21. Re1 {[%clk 0:02:46]}  Ng4 {[%clk 0:02:44]} 22. Bxg4 {[%clk 0:02:42]}  Qxg4 {[%clk 0:02:44]} 23. e5 {[%clk 0:02:43]}  dxe5 {[%clk 0:02:42]} 24. Rxe5 {[%clk 0:02:29]}  e6 {[%clk 0:02:39]} 25. Rce1 {[%clk 0:02:12]}  Rfd8 {[%clk 0:02:30]} 26. Kg2 {[%clk 0:01:52]}  Qd4 {[%clk 0:02:29]} 27. Qa3 {[%clk 0:01:45]}  Rc7 {[%clk 0:02:15]} 28. R1e2 {[%clk 0:01:32]}  Qd6 {[%clk 0:02:12]} 29. Qc1 {[%clk 0:01:30]}  Qc6+ {[%clk 0:02:11]} 30. Kh2 {[%clk 0:01:29]}  Rcd7 {[%clk 0:02:07]} 31. Qg5 {[%clk 0:01:19]}  Rd1 {[%clk 0:02:00]} 32. Re1 {[%clk 0:01:19]}  Qf3 {[%clk 0:01:53]} 33. Kg1 {[%clk 0:01:03]}  R8d2 {[%clk 0:01:37]} 34. Qf4 {[%clk 0:00:37]}  Qxf4 {[%clk 0:01:26]} 35. gxf4 {[%clk 0:00:35]}  Rxe1+ {[%clk 0:01:26]} 36. Rxe1 {[%clk 0:00:36]}  Rxa2 {[%clk 0:01:26]} 37. Rd1 {[%clk 0:00:35]}  Rb2 {[%clk 0:01:22]} 38. Rd7 {[%clk 0:00:32]}  Rxb3 {[%clk 0:01:14]} 39. Rxa7 {[%clk 0:00:32]}  Rb4 {[%clk 0:01:15]} 40. Rc7 {[%clk 0:00:32]}  Kg7 {[%clk 0:01:08]} 41. Kg2 {[%clk 0:00:32]}  Rb3 {[%clk 0:01:09]} 42. Rc6 {[%clk 0:00:29]}  Kf6 {[%clk 0:01:06]} 43. Rc7 {[%clk 0:00:27]}  Rc3 {[%clk 0:00:57]} 44. f3 {[%clk 0:00:19]}  b5 {[%clk 0:00:56]} 45. c5 {[%clk 0:00:19]}  b4 {[%clk 0:00:56]} 46. Rb7 {[%clk 0:00:18]}  Rxc5 {[%clk 0:00:51]} 47. Rxb4 {[%clk 0:00:18]}  Rc2+ {[%clk 0:00:50]} 48. Kg3 {[%clk 0:00:18]}  Rc1 {[%clk 0:00:50]} 49. Rb7 {[%clk 0:00:16]}  Rd1 {[%clk 0:00:49]} 50. Ra7 {[%clk 0:00:16]}  Rd8 {[%clk 0:00:42]} 51. Rb7 {[%clk 0:00:16]}  Rf8 {[%clk 0:00:41]} 52. Rb5 {[%clk 0:00:17]}  Kg7 {[%clk 0:00:41]} 53. Ra5 {[%clk 0:00:17]}  f6 {[%clk 0:00:41]} 54. Ra6 {[%clk 0:00:15]}  Re8 {[%clk 0:00:41]} 55. Ra7+ {[%clk 0:00:14]}  Kf8 {[%clk 0:00:38]} 56. Rh7 {[%clk 0:00:12]}  Re7 {[%clk 0:00:35]} 57. Rh8+ {[%clk 0:00:11]}  Kg7 {[%clk 0:00:36]} 58. Ra8 {[%clk 0:00:11]}  Rb7 {[%clk 0:00:35]} 59. Ra6 {[%clk 0:00:09]}  Kf7 {[%clk 0:00:35]} 60. Ra5 {[%clk 0:00:09]}  Rd7 {[%clk 0:00:32]} 61. Ra6 {[%clk 0:00:09]}  Ke7 {[%clk 0:00:32]} 62. Ra8 {[%clk 0:00:09]}  Rd3 {[%clk 0:00:22]} 63. Rg8 {[%clk 0:00:08]}  Kf7 {[%clk 0:00:20]} 64. Ra8 {[%clk 0:00:08]}  e5 {[%clk 0:00:20]} 65. fxe5 {[%clk 0:00:06]}  fxe5 {[%clk 0:00:20]} 66. Ra6 {[%clk 0:00:06]}  e4 {[%clk 0:00:19]} 67. Kf4 {[%clk 0:00:03]}  exf3 {[%clk 0:00:19]} 68. Kg5 {[%clk 0:00:04]}  Rd5+ {[%clk 0:00:17]} 69. Kh6 {[%clk 0:00:02]}  f2 {[%clk 0:00:15]} 70. Ra1 {[%clk 0:00:02]}  Rf5 {[%clk 0:00:16]} 71. Rf1 {[%clk 0:00:03]}  Kf6 {[%clk 0:00:15]} 72. Kh7 {[%clk 0:00:03]}  Rf4 {[%clk 0:00:15]} 73. Kh6 {[%clk 0:00:02]}  Kf5 {[%clk 0:00:16]} 74. Kh7 {[%clk 0:00:02]}  Kg4 {[%clk 0:00:16]} 75. Kh6 {[%clk 0:00:03]}  Kxh4 {[%clk 0:00:17]} 76. Kxg6 {[%clk 0:00:03]}  Kg3 {[%clk 0:00:17]} 77. Kg5 {[%clk 0:00:04]}  Rf8 {[%clk 0:00:16]} 78. Kxh5 {[%clk 0:00:02]}  Kg2 {[%clk 0:00:16]} 79. Rxf2+ {[%clk 0:00:02]}  Kxf2 {[%clk 0:00:16]} 0-1


[Site "https://www.chess.com"]

[Event "Titled Tuesday Blitz June 13 Late 2023"]
[White "Pesotskiy, Mikhail"]
[Black "MaryanKyrychenko"]
[WhiteFideId "34164453"]
[WhiteElo "2131"]
[BlackElo "2575"]
[Result "1-0"]
[Round "4"]
[TimeControl "180+2"]
[Date "2023.06.13"]
[WhiteClock "0:00:17"]
[BlackClock "0:00:09"]
[Board "123"]

1. d4 {[%clk 0:03:00]}  Nf6 {[%clk 0:02:58]} 2. c4 {[%clk 0:02:59]}  e6 {[%clk 0:02:58]} 3. Nc3 {[%clk 0:02:59]}  Bb4 {[%clk 0:02:46]} 4. Qc2 {[%clk 0:02:58]}  O-O {[%clk 0:02:46]} 5. a3 {[%clk 0:02:57]}  Bxc3+ {[%clk 0:02:46]} 6. Qxc3 {[%clk 0:02:58]}  b6 {[%clk 0:02:45]} 7. Bg5 {[%clk 0:02:55]}  Bb7 {[%clk 0:02:44]} 8. e3 {[%clk 0:02:51]}  d5 {[%clk 0:02:41]} 9. Nf3 {[%clk 0:02:50]}  Nbd7 {[%clk 0:02:40]} 10. cxd5 {[%clk 0:02:46]}  exd5 {[%clk 0:02:38]} 11. Bd3 {[%clk 0:02:45]}  h6 {[%clk 0:02:36]} 12. Bh4 {[%clk 0:02:44]}  c5 {[%clk 0:02:31]} 13. O-O {[%clk 0:02:43]}  Rc8 {[%clk 0:02:30]} 14. Rac1 {[%clk 0:02:41]}  c4 {[%clk 0:02:23]} 15. Bb1 {[%clk 0:02:40]}  Qc7 {[%clk 0:02:22]} 16. Bg3 {[%clk 0:02:33]}  Qc6 {[%clk 0:02:17]} 17. Ne5 {[%clk 0:02:34]}  Nxe5 {[%clk 0:02:15]} 18. Bxe5 {[%clk 0:02:32]}  Rfe8 {[%clk 0:02:13]} 19. Rfe1 {[%clk 0:02:29]}  a6 {[%clk 0:01:57]} 20. Qc2 {[%clk 0:02:26]}  b5 {[%clk 0:01:45]} 21. Qf5 {[%clk 0:02:03]}  Ne4 {[%clk 0:01:40]} 22. f3 {[%clk 0:02:01]}  f6 {[%clk 0:00:29]} 23. Bf4 {[%clk 0:01:04]}  Nd6 {[%clk 0:00:15]} 24. Qh7+ {[%clk 0:01:01]}  Kf8 {[%clk 0:00:14]} 25. Bg6 {[%clk 0:01:00]}  Nf7 {[%clk 0:00:13]} 26. Bxh6 {[%clk 0:00:42]}  Nxh6 {[%clk 0:00:12]} 27. Qh8+ {[%clk 0:00:41]}  Ng8 {[%clk 0:00:12]} 28. e4 {[%clk 0:00:40]}  dxe4 {[%clk 0:00:12]} 29. fxe4 {[%clk 0:00:41]}  Qd6 {[%clk 0:00:12]} 30. Rcd1 {[%clk 0:00:39]}  Qf4 {[%clk 0:00:11]} 31. d5 {[%clk 0:00:17]}  Qh6 {[%clk 0:00:10]} 32. Bh7 {[%clk 0:00:17]}  Kf7 {[%clk 0:00:09]} 33. e5 {[%clk 0:00:17]}  Ne7 {[%clk 0:00:09]} 34. e6# {[%clk 0:00:17]} 1-0


[Site "https://www.chess.com"]

[Event "Titled Tuesday Blitz June 13 Late 2023"]
[White "Makaraci, Tunahan"]
[Black "Bueno, Alfeu Junior Varela"]
[WhiteFideId "6356559"]
[BlackFideId "2108879"]
[WhiteElo "2160"]
[BlackElo "2175"]
[Result "0-1"]
[Round "4"]
[TimeControl "180+2"]
[Date "2023.06.13"]
[WhiteClock "0:00:00"]
[BlackClock "0:00:12"]
[Board "124"]

1. e4 {[%clk 0:03:00]}  e6 {[%clk 0:02:56]} 2. d4 {[%clk 0:03:00]}  d5 {[%clk 0:02:54]} 3. Nd2 {[%clk 0:02:57]}  Nf6 {[%clk 0:02:52]} 4. e5 {[%clk 0:02:56]}  Nfd7 {[%clk 0:02:53]} 5. g3 {[%clk 0:02:56]}  c5 {[%clk 0:02:52]} 6. c3 {[%clk 0:02:57]}  Nc6 {[%clk 0:02:53]} 7. Ne2 {[%clk 0:02:56]}  Be7 {[%clk 0:02:46]} 8. Bg2 {[%clk 0:02:56]}  O-O {[%clk 0:02:47]} 9. O-O {[%clk 0:02:56]}  f6 {[%clk 0:02:36]} 10. f4 {[%clk 0:02:55]}  cxd4 {[%clk 0:02:36]} 11. cxd4 {[%clk 0:02:55]}  Qb6 {[%clk 0:02:34]} 12. exf6 {[%clk 0:02:30]}  Bxf6 {[%clk 0:02:33]} 13. Nf3 {[%clk 0:02:30]}  e5 {[%clk 0:02:25]} 14. fxe5 {[%clk 0:02:20]}  Ndxe5 {[%clk 0:02:23]} 15. Kh1 {[%clk 0:02:15]}  Nxf3 {[%clk 0:02:17]} 16. Bxf3 {[%clk 0:02:15]}  Bh3 {[%clk 0:02:12]} 17. Bxd5+ {[%clk 0:02:11]}  Kh8 {[%clk 0:02:11]} 18. Rf4 {[%clk 0:02:08]}  Nxd4 {[%clk 0:02:03]} 19. Be3 {[%clk 0:02:05]}  Qb5 {[%clk 0:01:38]} 20. Nc3 {[%clk 0:01:49]}  Qxb2 {[%clk 0:01:31]} 21. Rxf6 {[%clk 0:01:27]}  Rxf6 {[%clk 0:01:10]} 22. Bxd4 {[%clk 0:01:27]}  Rf1+ {[%clk 0:00:45]} 23. Qxf1 {[%clk 0:01:26]}  Bxf1 {[%clk 0:00:45]} 24. Rxf1 {[%clk 0:01:26]}  h6 {[%clk 0:00:36]} 25. Rb1 {[%clk 0:00:40]}  Qd2 {[%clk 0:00:35]} 26. Rd1 {[%clk 0:00:40]}  Qc2 {[%clk 0:00:28]} 27. Be4 {[%clk 0:00:39]}  Qb2 {[%clk 0:00:24]} 28. Nd5 {[%clk 0:00:36]}  Qxa2 {[%clk 0:00:22]} 29. Nf4 {[%clk 0:00:36]}  Qa4 {[%clk 0:00:18]} 30. Rd2 {[%clk 0:00:23]}  Re8 {[%clk 0:00:17]} 31. Bxb7 {[%clk 0:00:12]}  Qb4 {[%clk 0:00:17]} 32. Rb2 {[%clk 0:00:10]}  Qxd4 {[%clk 0:00:13]} 33. Rb1 {[%clk 0:00:05]}  Rb8 {[%clk 0:00:13]} 34. Ng6+ {[%clk 0:00:04]}  Kh7 {[%clk 0:00:12]} 35. Nf4 {[%clk 0:00:00]}  Rxb7 {[%clk 0:00:12]} 0-1


[Site "https://www.chess.com"]

[Event "Titled Tuesday Blitz June 13 Late 2023"]
[White "Fajdetic, Hrvoje"]
[Black "Mortazavi, Ali"]
[WhiteFideId "14501945"]
[BlackFideId "401323"]
[WhiteElo "2185"]
[BlackElo "2339"]
[Result "0-1"]
[Round "4"]
[TimeControl "180+2"]
[Date "2023.06.13"]
[WhiteClock "0:00:00"]
[BlackClock "0:00:32"]
[Board "126"]

1. d4 {[%clk 0:02:54]}  Nf6 {[%clk 0:02:54]} 2. Bf4 {[%clk 0:02:53]}  g6 {[%clk 0:02:54]} 3. Nc3 {[%clk 0:02:51]}  c5 {[%clk 0:02:46]} 4. d5 {[%clk 0:02:48]}  Qb6 {[%clk 0:02:44]} 5. Rb1 {[%clk 0:02:46]}  Bg7 {[%clk 0:02:43]} 6. e4 {[%clk 0:02:46]}  d6 {[%clk 0:02:43]} 7. Qd2 {[%clk 0:02:43]}  Na6 {[%clk 0:02:31]} 8. Nf3 {[%clk 0:02:15]}  Bg4 {[%clk 0:02:29]} 9. Bb5+ {[%clk 0:02:13]}  Bd7 {[%clk 0:02:29]} 10. Bxa6 {[%clk 0:02:06]}  Qxa6 {[%clk 0:02:29]} 11. e5 {[%clk 0:02:04]}  dxe5 {[%clk 0:02:24]} 12. Nxe5 {[%clk 0:02:01]}  Bf5 {[%clk 0:02:22]} 13. h3 {[%clk 0:01:30]}  O-O {[%clk 0:02:19]} 14. g4 {[%clk 0:01:30]}  Ne4 {[%clk 0:02:04]} 15. Qe3 {[%clk 0:01:18]}  Nxc3 {[%clk 0:02:00]} 16. Qxc3 {[%clk 0:01:18]}  Be4 {[%clk 0:01:58]} 17. f3 {[%clk 0:01:01]}  Bxd5 {[%clk 0:01:58]} 18. Kf2 {[%clk 0:00:58]}  Rfd8 {[%clk 0:01:39]} 19. Rhd1 {[%clk 0:00:40]}  e6 {[%clk 0:01:34]} 20. b3 {[%clk 0:00:23]}  b6 {[%clk 0:01:33]} 21. Qb2 {[%clk 0:00:17]}  Rac8 {[%clk 0:01:29]} 22. c4 {[%clk 0:00:17]}  Ba8 {[%clk 0:01:28]} 23. Qe2 {[%clk 0:00:17]}  Qb7 {[%clk 0:01:26]} 24. h4 {[%clk 0:00:16]}  f6 {[%clk 0:01:07]} 25. Nd3 {[%clk 0:00:12]}  e5 {[%clk 0:01:08]} 26. Bg3 {[%clk 0:00:10]}  Rd4 {[%clk 0:01:02]} 27. g5 {[%clk 0:00:09]}  e4 {[%clk 0:00:59]} 28. Nf4 {[%clk 0:00:06]}  fxg5 {[%clk 0:00:51]} 29. hxg5 {[%clk 0:00:05]}  Qf7 {[%clk 0:00:48]} 30. Rxd4 {[%clk 0:00:03]}  Bxd4+ {[%clk 0:00:48]} 31. Kf1 {[%clk 0:00:03]}  exf3 {[%clk 0:00:47]} 32. Qe6 {[%clk 0:00:02]}  Re8 {[%clk 0:00:37]} 33. Qxf7+ {[%clk 0:00:01]}  Kxf7 {[%clk 0:00:37]} 34. b4 {[%clk 0:00:00]}  Be4 {[%clk 0:00:32]} 0-1


[Site "https://www.chess.com"]

[Event "Titled Tuesday Blitz June 13 Late 2023"]
[White "Ozates, Tuna"]
[Black "Topalov, Aleksandar"]
[WhiteFideId "6354521"]
[BlackFideId "925659"]
[WhiteElo "2151"]
[BlackElo "2151"]
[Result "0-1"]
[Round "4"]
[TimeControl "180+2"]
[Date "2023.06.13"]
[WhiteClock "0:01:59"]
[BlackClock "0:00:07"]
[Board "128"]

1. e4 {[%clk 0:03:00]}  e6 {[%clk 0:02:59]} 2. d4 {[%clk 0:03:00]}  d5 {[%clk 0:02:58]} 3. Nc3 {[%clk 0:02:59]}  Bb4 {[%clk 0:02:57]} 4. e5 {[%clk 0:02:59]}  Qd7 {[%clk 0:02:57]} 5. Qg4 {[%clk 0:02:57]}  Bf8 {[%clk 0:02:57]} 6. f4 {[%clk 0:02:56]}  h5 {[%clk 0:02:56]} 7. Qg3 {[%clk 0:02:56]}  g6 {[%clk 0:02:56]} 8. Nf3 {[%clk 0:02:57]}  b6 {[%clk 0:02:56]} 9. a4 {[%clk 0:02:55]}  Ba6 {[%clk 0:02:55]} 10. Bb5 {[%clk 0:02:55]}  c6 {[%clk 0:02:53]} 11. Bxa6 {[%clk 0:02:49]}  Nxa6 {[%clk 0:02:54]} 12. O-O {[%clk 0:02:50]}  Nh6 {[%clk 0:02:49]} 13. a5 {[%clk 0:02:50]}  b5 {[%clk 0:02:48]} 14. Ne2 {[%clk 0:02:50]}  Nf5 {[%clk 0:02:47]} 15. Qf2 {[%clk 0:02:50]}  c5 {[%clk 0:02:39]} 16. c3 {[%clk 0:02:50]}  b4 {[%clk 0:02:29]} 17. dxc5 {[%clk 0:02:45]}  Nxc5 {[%clk 0:01:52]} 18. Ned4 {[%clk 0:02:40]}  bxc3 {[%clk 0:01:43]} 19. bxc3 {[%clk 0:02:38]}  Ne4 {[%clk 0:01:43]} 20. Qe1 {[%clk 0:02:37]}  Nxd4 {[%clk 0:01:16]} 21. cxd4 {[%clk 0:02:31]}  Be7 {[%clk 0:01:16]} 22. Ba3 {[%clk 0:02:30]}  O-O {[%clk 0:01:13]} 23. Bxe7 {[%clk 0:02:29]}  Qxe7 {[%clk 0:01:13]} 24. h3 {[%clk 0:02:29]}  Kg7 {[%clk 0:01:05]} 25. g4 {[%clk 0:02:27]}  hxg4 {[%clk 0:01:05]} 26. hxg4 {[%clk 0:02:28]}  Rh8 {[%clk 0:01:03]} 27. Ra2 {[%clk 0:02:25]}  Rh3 {[%clk 0:00:57]} 28. Rg2 {[%clk 0:02:20]}  Rah8 {[%clk 0:00:53]} 29. Nh2 {[%clk 0:02:20]}  Qa3 {[%clk 0:00:33]} 30. f5 {[%clk 0:02:13]}  Qd3 {[%clk 0:00:13]} 31. f6+ {[%clk 0:02:12]}  Kg8 {[%clk 0:00:13]} 32. Qb4 {[%clk 0:02:01]}  Qe3+ {[%clk 0:00:10]} 33. Kh1 {[%clk 0:01:59]}  Ng3+ {[%clk 0:00:07]} 0-1


[Site "https://www.chess.com"]

[Event "Titled Tuesday Blitz June 13 Late 2023"]
[White "Golubev, Mikhail"]
[Black "Fernandez Siles, Luis"]
[WhiteFideId "14100983"]
[BlackFideId "2209420"]
[WhiteElo "2374"]
[BlackElo "2195"]
[Result "0-1"]
[Round "4"]
[TimeControl "180+2"]
[Date "2023.06.13"]
[WhiteClock "0:00:00"]
[BlackClock "0:00:45"]
[Board "131"]

1. e4 {[%clk 0:03:00]}  c5 {[%clk 0:02:59]} 2. Nf3 {[%clk 0:03:00]}  Nc6 {[%clk 0:03:00]} 3. Nc3 {[%clk 0:02:57]}  g6 {[%clk 0:02:58]} 4. d4 {[%clk 0:02:57]}  cxd4 {[%clk 0:02:59]} 5. Nxd4 {[%clk 0:02:57]}  Bg7 {[%clk 0:03:00]} 6. Be3 {[%clk 0:02:57]}  Nf6 {[%clk 0:03:00]} 7. Bc4 {[%clk 0:02:57]}  O-O {[%clk 0:03:00]} 8. Bb3 {[%clk 0:02:55]}  d6 {[%clk 0:03:00]} 9. f3 {[%clk 0:02:53]}  Bd7 {[%clk 0:03:00]} 10. h4 {[%clk 0:02:52]}  Qa5 {[%clk 0:02:58]} 11. Qd2 {[%clk 0:02:50]}  Rfc8 {[%clk 0:02:57]} 12. O-O-O {[%clk 0:02:48]}  Ne5 {[%clk 0:02:57]} 13. g4 {[%clk 0:02:45]}  Nc4 {[%clk 0:02:55]} 14. Bxc4 {[%clk 0:02:44]}  Rxc4 {[%clk 0:02:56]} 15. h5 {[%clk 0:02:44]}  Rac8 {[%clk 0:02:51]} 16. Nb3 {[%clk 0:02:43]}  Qe5 {[%clk 0:02:47]} 17. Bd4 {[%clk 0:02:10]}  Qg3 {[%clk 0:02:38]} 18. Qe3 {[%clk 0:00:47]}  Nxg4 {[%clk 0:02:21]} 19. fxg4 {[%clk 0:00:44]}  Qxe3+ {[%clk 0:02:19]} 20. Bxe3 {[%clk 0:00:42]}  Bxg4 {[%clk 0:02:18]} 21. Rdg1 {[%clk 0:00:36]}  gxh5 {[%clk 0:01:50]} 22. Rh2 {[%clk 0:00:32]}  Bxc3 {[%clk 0:01:46]} 23. bxc3 {[%clk 0:00:21]}  Rxe4 {[%clk 0:01:46]} 24. Rxh5 {[%clk 0:00:18]}  Kh8 {[%clk 0:01:30]} 25. Rh4 {[%clk 0:00:11]}  f5 {[%clk 0:01:27]} 26. Bg5 {[%clk 0:00:04]}  Kg7 {[%clk 0:01:11]} 27. Rg3 {[%clk 0:00:03]}  Kg6 {[%clk 0:01:11]} 28. Bd2 {[%clk 0:00:03]}  h5 {[%clk 0:01:11]} 29. Nd4 {[%clk 0:00:03]}  f4 {[%clk 0:01:01]} 30. Rg1 {[%clk 0:00:02]}  Kg5 {[%clk 0:01:02]} 31. Rh2 {[%clk 0:00:01]}  e5 {[%clk 0:00:52]} 32. Nf3+ {[%clk 0:00:01]}  Kf5 {[%clk 0:00:51]} 33. Nh4+ {[%clk 0:00:02]}  Ke6 {[%clk 0:00:51]} 34. Re1 {[%clk 0:00:01]}  Rxe1+ {[%clk 0:00:50]} 35. Bxe1 {[%clk 0:00:02]}  e4 {[%clk 0:00:48]} 36. Bd2 {[%clk 0:00:02]}  e3 {[%clk 0:00:48]} 37. Bxe3 {[%clk 0:00:02]}  fxe3 {[%clk 0:00:49]} 38. Ng2 {[%clk 0:00:02]}  e2 {[%clk 0:00:48]} 39. Nf4+ {[%clk 0:00:02]}  Kf5 {[%clk 0:00:47]} 40. Nxe2 {[%clk 0:00:03]}  Bxe2 {[%clk 0:00:46]} 41. Rxe2 {[%clk 0:00:03]}  h4 {[%clk 0:00:45]} 42. Re7 {[%clk 0:00:03]}  Rh8 {[%clk 0:00:45]} 43. Rf7+ {[%clk 0:00:03]}  Ke6 {[%clk 0:00:44]} 44. Rf2 {[%clk 0:00:02]}  h3 {[%clk 0:00:45]} 45. Rh2 {[%clk 0:00:02]}  Kf5 {[%clk 0:00:45]} 46. Kd2 {[%clk 0:00:00]}  Kg4 {[%clk 0:00:45]} 0-1


[Site "https://www.chess.com"]

[Event "Titled Tuesday Blitz June 13 Late 2023"]
[White "Hoffmann, Asa"]
[Black "Peycheva, Gergana"]
[WhiteFideId "2001470"]
[BlackFideId "2916711"]
[WhiteElo "2117"]
[BlackElo "2216"]
[Result "0-1"]
[Round "4"]
[TimeControl "180+2"]
[Date "2023.06.13"]
[WhiteClock "0:00:00"]
[BlackClock "0:01:09"]
[Board "134"]

1. d4 {[%clk 0:02:04]}  Nf6 {[%clk 0:02:57]} 2. Bg5 {[%clk 0:02:00]}  e6 {[%clk 0:02:52]} 3. Nd2 {[%clk 0:01:59]}  h6 {[%clk 0:02:51]} 4. Bh4 {[%clk 0:01:59]}  d5 {[%clk 0:02:49]} 5. e3 {[%clk 0:01:59]}  Be7 {[%clk 0:02:46]} 6. Bd3 {[%clk 0:01:59]}  b6 {[%clk 0:02:46]} 7. c3 {[%clk 0:01:55]}  O-O {[%clk 0:02:45]} 8. f4 {[%clk 0:01:55]}  Ba6 {[%clk 0:02:41]} 9. Bxa6 {[%clk 0:01:52]}  Nxa6 {[%clk 0:02:40]} 10. Ngf3 {[%clk 0:01:52]}  c5 {[%clk 0:02:40]} 11. Ne5 {[%clk 0:01:51]}  Nb8 {[%clk 0:02:34]} 12. O-O {[%clk 0:01:49]}  Ne4 {[%clk 0:02:27]} 13. Bxe7 {[%clk 0:01:46]}  Qxe7 {[%clk 0:02:28]} 14. Nxe4 {[%clk 0:01:45]}  dxe4 {[%clk 0:02:28]} 15. f5 {[%clk 0:01:45]}  exf5 {[%clk 0:02:17]} 16. Rxf5 {[%clk 0:01:20]}  Nd7 {[%clk 0:02:17]} 17. Qg4 {[%clk 0:01:14]}  Nxe5 {[%clk 0:01:51]} 18. Rxe5 {[%clk 0:01:13]}  Qd6 {[%clk 0:01:46]} 19. Qxe4 {[%clk 0:01:11]}  Rad8 {[%clk 0:01:38]} 20. Rf1 {[%clk 0:01:10]}  Qd7 {[%clk 0:01:13]} 21. h3 {[%clk 0:00:00]}  Rfe8 {[%clk 0:01:09]} 0-1


[Site "https://www.chess.com"]

[Event "Titled Tuesday Blitz June 13 Late 2023"]
[White "Petesch, Gabriel"]
[Black "Quinones Garcia, Santiago"]
[WhiteFideId "2032465"]
[BlackFideId "4408497"]
[WhiteElo "2374"]
[BlackElo "2173"]
[Result "1-0"]
[Round "4"]
[TimeControl "180+2"]
[Date "2023.06.13"]
[WhiteClock "0:00:08"]
[BlackClock "0:00:09"]
[Board "135"]

1. Nf3 {[%clk 0:02:51]}  d5 {[%clk 0:02:59]} 2. g3 {[%clk 0:02:52]}  c6 {[%clk 0:03:00]} 3. Bg2 {[%clk 0:02:49]}  Bg4 {[%clk 0:03:00]} 4. d3 {[%clk 0:02:48]}  Nd7 {[%clk 0:03:00]} 5. Nc3 {[%clk 0:02:46]}  Ngf6 {[%clk 0:03:00]} 6. O-O {[%clk 0:02:43]}  e5 {[%clk 0:03:00]} 7. e4 {[%clk 0:02:37]}  Bd6 {[%clk 0:02:59]} 8. h3 {[%clk 0:02:31]}  Bh5 {[%clk 0:02:58]} 9. Re1 {[%clk 0:02:06]}  O-O {[%clk 0:02:57]} 10. g4 {[%clk 0:01:30]}  Bg6 {[%clk 0:02:55]} 11. g5 {[%clk 0:01:29]}  Nh5 {[%clk 0:02:28]} 12. exd5 {[%clk 0:01:25]}  Nf4 {[%clk 0:02:00]} 13. Bxf4 {[%clk 0:01:18]}  exf4 {[%clk 0:02:01]} 14. dxc6 {[%clk 0:01:17]}  bxc6 {[%clk 0:02:02]} 15. Ne4 {[%clk 0:01:10]}  Bc7 {[%clk 0:01:57]} 16. Qe2 {[%clk 0:01:08]}  Re8 {[%clk 0:01:55]} 17. Rad1 {[%clk 0:01:05]}  Ne5 {[%clk 0:01:48]} 18. d4 {[%clk 0:00:30]}  Nxf3+ {[%clk 0:01:45]} 19. Qxf3 {[%clk 0:00:30]}  Bxe4 {[%clk 0:01:42]} 20. Rxe4 {[%clk 0:00:31]}  Qxg5 {[%clk 0:01:39]} 21. Rde1 {[%clk 0:00:27]}  Rxe4 {[%clk 0:01:35]} 22. Qxe4 {[%clk 0:00:28]}  h6 {[%clk 0:01:18]} 23. Qxc6 {[%clk 0:00:26]}  Rc8 {[%clk 0:01:15]} 24. Qd7 {[%clk 0:00:20]}  Qd8 {[%clk 0:01:04]} 25. Qxd8+ {[%clk 0:00:16]}  Rxd8 {[%clk 0:01:05]} 26. c3 {[%clk 0:00:16]}  Ba5 {[%clk 0:01:02]} 27. Bc6 {[%clk 0:00:14]}  g6 {[%clk 0:01:00]} 28. Kg2 {[%clk 0:00:14]}  Kg7 {[%clk 0:01:00]} 29. Kf3 {[%clk 0:00:15]}  g5 {[%clk 0:00:58]} 30. Re7 {[%clk 0:00:14]}  Bb6 {[%clk 0:00:56]} 31. Ba4 {[%clk 0:00:13]}  Kf6 {[%clk 0:00:54]} 32. Rb7 {[%clk 0:00:10]}  h5 {[%clk 0:00:50]} 33. Bb3 {[%clk 0:00:08]}  Rf8 {[%clk 0:00:50]} 34. a4 {[%clk 0:00:08]}  Kg6 {[%clk 0:00:36]} 35. a5 {[%clk 0:00:05]}  Bxa5 {[%clk 0:00:36]} 36. Rxa7 {[%clk 0:00:05]}  Bb6 {[%clk 0:00:31]} 37. Ra6 {[%clk 0:00:05]}  Rb8 {[%clk 0:00:31]} 38. Bd5 {[%clk 0:00:03]}  Kf5 {[%clk 0:00:30]} 39. b4 {[%clk 0:00:03]}  g4+ {[%clk 0:00:29]} 40. hxg4+ {[%clk 0:00:03]}  hxg4+ {[%clk 0:00:30]} 41. Ke2 {[%clk 0:00:03]}  f3+ {[%clk 0:00:26]} 42. Bxf3 {[%clk 0:00:02]}  gxf3+ {[%clk 0:00:26]} 43. Kxf3 {[%clk 0:00:03]}  Bd8 {[%clk 0:00:20]} 44. Ke3 {[%clk 0:00:04]}  Bg5+ {[%clk 0:00:20]} 45. Kd3 {[%clk 0:00:04]}  Bh4 {[%clk 0:00:19]} 46. Ra7 {[%clk 0:00:04]}  f6 {[%clk 0:00:19]} 47. Ra2 {[%clk 0:00:03]}  Kf4 {[%clk 0:00:16]} 48. d5 {[%clk 0:00:02]}  Ke5 {[%clk 0:00:16]} 49. c4 {[%clk 0:00:02]}  Rxb4 {[%clk 0:00:15]} 50. Re2+ {[%clk 0:00:02]}  Kf5 {[%clk 0:00:16]} 51. d6 {[%clk 0:00:02]}  Rb7 {[%clk 0:00:10]} 52. Kd4 {[%clk 0:00:02]}  Kf4 {[%clk 0:00:09]} 53. Kd5 {[%clk 0:00:02]}  f5 {[%clk 0:00:09]} 54. c5 {[%clk 0:00:03]}  Kf3 {[%clk 0:00:09]} 55. Ra2 {[%clk 0:00:03]}  Bxf2 {[%clk 0:00:08]} 56. c6 {[%clk 0:00:03]}  Rb8 {[%clk 0:00:08]} 57. c7 {[%clk 0:00:04]}  Rh8 {[%clk 0:00:08]} 58. d7 {[%clk 0:00:04]}  Bh4 {[%clk 0:00:05]} 59. c8=Q {[%clk 0:00:04]}  Rh6 {[%clk 0:00:04]} 60. d8=Q {[%clk 0:00:03]}  Kg4 {[%clk 0:00:05]} 61. Qxh4+ {[%clk 0:00:03]}  Rxh4 {[%clk 0:00:06]} 62. Qg8+ {[%clk 0:00:03]}  Kf3 {[%clk 0:00:06]} 63. Qg2+ {[%clk 0:00:04]}  Ke3 {[%clk 0:00:06]} 64. Qf2+ {[%clk 0:00:05]}  Kd3 {[%clk 0:00:07]} 65. Qe2+ {[%clk 0:00:06]}  Kc3 {[%clk 0:00:07]} 66. Qd2+ {[%clk 0:00:07]}  Kb3 {[%clk 0:00:08]} 67. Qc2+ {[%clk 0:00:07]}  Kb4 {[%clk 0:00:08]} 68. Ra4+ {[%clk 0:00:07]}  Kb5 {[%clk 0:00:09]} 69. Qc6# {[%clk 0:00:08]} 1-0


[Site "https://www.chess.com"]